[Event "XII Cracow ICC-A 2024"]
[Site "Krakow"]
[Date "2024.06.27"]
[Round "7.1"]
[White "Gumularz, Szymon"]
[Black "Vetoshko, Volodymyr"]
[Result "1/2-1/2"]
[ECO "D35"]
[WhiteElo "2593"]
[BlackElo "2505"]
[Annotator "TA"]
[PlyCount "31"]
[EventDate "2024.06.20"]
[EventType "swiss"]
[EventCountry "POL"]
[SourceTitle "playchess.com"]
[Source "ChessBase"]
[SourceQuality "1"]
[TimeControl "40/5400+30:1800+30"]

{[%evp 12,31,23,26,35,24,41,0,0,-4,-17,-43,-41,-54,-25,-18,-12,-93,-69,-52,-14,-121]} 1. d4 {[%emt 0:00:04]} d5 {[%emt 0:01:12]} 2. c4 {[%emt 0:00:06]} e6 {[%emt 0:00:06]} 3. Nc3 {[%emt 0:00:05]} Nf6 {[%emt 0:00:22]} 4. cxd5 {[%emt 0:00:37]} exd5 {[%emt 0:00:09]} 5. Bg5 {[%emt 0:00:07][%cal Bc1g5,Bg5h4,Bh4g3][%mdl 32]} Bb4 {[%emt 0:00:31]} 6. e3 {[%emt 0:02:23]} h6 {[%emt 0:00:26][%cal Bh7h6,Bh6h5,Bh5h4][%mdl 32]} 7. Bh4 {[%emt 0:00:03]} g5 {[%emt 0:00:08]} 8. Bg3 {[%emt 0:00:03]} h5 {[%emt 0:00:23]} ({Reject} 8... Bxc3+ 9. bxc3 Qe7 10. Bd3 $16) 9. f3 {[%emt 0:06:53]} h4 {[%emt 0:00:29]} 10. Bf2 {[%emt 0:00:12]} Qe7 {[%emt 0:00:57]} 11. Bd3 {[%emt 0:02:49] Dodges Bf5} g4 {[%emt 0:03:23]} 12. Qc2 {[%emt 0:04:38]} Nc6 {[%emt 0:09:07]} 13. O-O-O {[%emt 0:01:59]} Bxc3 {[%emt 0:12:36]} 14. Qxc3 {[#]} (14. bxc3 $11 {keeps the balance.} Be6 15. h3) 14... h3 $1 $17 {[%emt 0:04:24]} 15. gxh3 {[%emt 0:00:37]} Nb4 {[%emt 0:09:02]} 16. Qb3 {[%emt 0:08:20] Weighted Error Value: White=0.20 (precise) /Black=0.10 (very precise) .  Mistake:       	White=2     	---        Inaccurate:     	White=2     	Black=2      OK:         	White=4     	Black=2      Strong:       	---       	Black=1} (16. Bb1 $11 gxf3 17. Qb3) 1/2-1/2

[Event "XII Cracow ICC-A 2024"]
[Site "Krakow"]
[Date "2024.06.27"]
[Round "7.2"]
[White "Samunenkov, Ihor"]
[Black "Rozentalis, Eduardas"]
[Result "1/2-1/2"]
[ECO "E51"]
[WhiteElo "2532"]
[BlackElo "2476"]
[Annotator "RC"]
[PlyCount "151"]
[EventDate "2024.06.20"]
[EventType "swiss"]
[EventCountry "POL"]
[SourceTitle "playchess.com"]
[Source "ChessBase"]
[SourceQuality "1"]
[TimeControl "40/5400+30:1800+30"]

1. d4 {[%emt 0:00:10]} Nf6 {[%emt 0:00:15]} 2. c4 {[%emt 0:00:09]} e6 {[%emt 0:00:09]} 3. Nc3 {[%emt 0:00:10]} Bb4 {[%emt 0:00:29]} 4. e3 {[%emt 0:00:13]} d5 {[%emt 0:01:03]} 5. Nf3 {[%emt 0:00:35]} O-O {[%emt 0:00:57]} 6. Bd2 {[%emt 0:00:15]} Re8 {[%emt 0:02:22]} 7. Rc1 {[%emt 0:04:09]} a6 {[%emt 0:04:58]} 8. Qc2 {[%emt 0:25:03]} Nbd7 {[%emt 0:04:28]} 9. a3 {[%emt 0:05:18]} Bf8 {[%emt 0:01:40]} 10. a4 {[%emt 0:04:54]} c5 {[%emt 0:01:59]} 11. cxd5 {[%emt 0:01:42]} exd5 {[%emt 0:01:50]} 12. Be2 {[%emt 0:00:14]} cxd4 {[%emt 0:05:59]} 13. Nxd4 {[%emt 0:01:41]} Nc5 {[%emt 0:02:17]} 14. O-O {[%emt 0:12:43]} Bg4 {[%emt 0:02:23]} 15. Rfd1 {[%emt 0:00:18]} Rc8 {[%emt 0:01:18]} 16. Be1 {[%emt 0:01:04]} Qd7 {[%emt 0:04:44]} 17. Bxg4 {[%emt 0:03:31]} Qxg4 {[%emt 0:05:15]} 18. b3 {[%emt 0:01:11]} Ne6 {[%emt 0:05:58]} 19. h3 {[%emt 0:04:59]} Qh5 {[%emt 0:02:09]} 20. Qf5 {[%emt 0:03:55]} Qxf5 {[%emt 0:05:56]} 21. Nxf5 {[%emt 0:00:06]} g6 {[%emt 0:01:31]} 22. Nd4 {[%emt 0:02:31]} Ba3 {[%emt 0:06:42]} 23. Rb1 {[%emt 0:02:55]} Nxd4 {[%emt 0:08:47]} 24. Rxd4 {[%emt 0:00:10]} Bc5 {[%emt 0:00:30]} 25. Rd3 {[%emt 0:02:08]} d4 {[%emt 0:01:06]} 26. exd4 {[%emt 0:04:14]} Bb4 {[%emt 0:00:14]} 27. Ne4 {[%emt 0:01:23]} Rxe4 {[%emt 0:00:22]} 28. Bxb4 {[%emt 0:00:06]} Nd5 {[%emt 0:00:08]} 29. Bd2 {[%emt 0:00:22]} Rc2 {[%emt 0:01:43]} 30. Kf1 {[%emt 0:01:31]} f5 {[%emt 0:05:06]} 31. a5 {[%emt 0:02:30]} Re6 {[%emt 0:04:43]} 32. g4 {[%emt 0:03:21]} Kf7 {[%emt 0:08:58]} 33. Kg2 {[%emt 0:01:45]} Ra2 {[%emt 0:05:20]} 34. gxf5 {[%emt 0:07:33]} gxf5 {[%emt 0:00:05]} 35. Kf3 {[%emt 0:00:05]} Rc6 {[%emt 0:00:56]} 36. Re1 {[%emt 0:00:58]} Rcc2 {[%emt 0:02:39]} 37. Re5 {[%emt 0:01:36]} Rxd2 {[%emt 0:00:42]} 38. Rxd2 {[%emt 0:00:06]} Rxd2 {[%emt 0:00:05]} 39. Rxd5 {[%emt 0:00:06]} Ke6 {[%emt 0:00:34]} 40. Re5+ {[%emt 0:01:45]} Kf6 {[%emt 0:01:35]} 41. Ke3 {[%emt 0:31:50]} Rb2 {[%emt 0:30:47]} 42. h4 {[%emt 0:00:00]} Rxb3+ {[%emt 0:00:00]} 43. Kf4 {[%emt 0:00:00]} Rb5 {[%emt 0:00:00]} 44. Rxb5 {[%emt 0:00:00]} axb5 {[%emt 0:00:00]} 45. Ke3 {[%emt 0:00:00]} Ke6 {[%emt 0:00:00]} 46. Kd3 {[%emt 0:00:00]} Kd5 {[%emt 0:00:00]} 47. Kc3 {[%emt 0:00:00]} f4 {[%emt 0:00:00]} 48. Kb4 {[%emt 0:00:00]} Kxd4 {[%emt 0:00:00]} 49. Kxb5 {[%emt 0:00:00]} Ke4 {[%emt 0:00:00]} 50. Kb6 {[%emt 0:00:00]} Kf3 {[%emt 0:00:00]} 51. Kxb7 {[%emt 0:00:03]} Kxf2 {[%emt 0:00:00]} 52. a6 {[%emt 0:00:08]} f3 {[%emt 0:00:00]} 53. a7 {[%emt 0:00:05]} Kg1 {[%emt 0:00:00]} 54. a8=Q f2 {[%emt 0:00:00]} 55. Qg8+ {[%emt 0:00:57]} Kh2 {[%emt 0:00:00]} 56. Qf7 {[%emt 0:00:07]} Kg2 {[%emt 0:00:00]} 57. Qg7+ {[%emt 0:00:12]} Kh1 {[%emt 0:00:00]} 58. Qf6 {[%emt 0:00:08]} h5 {[%emt 0:00:00]} 59. Kc6 {[%emt 0:07:53]} Kg2 {[%emt 0:00:00]} 60. Qg5+ {[%emt 0:00:43]} Kh3 {[%emt 0:00:00]} 61. Qf4 {[%emt 0:00:49]} Kg2 {[%emt 0:00:00]} 62. Qe4+ {[%emt 0:00:09]} Kg1 {[%emt 0:00:00]} 63. Qe3 {[%emt 0:00:08]} Kg2 {[%emt 0:00:00]} 64. Qe2 {[%emt 0:01:02]} Kg1 {[%emt 0:00:00]} 65. Qxh5 {[%emt 0:00:41]} f1=Q {[%emt 0:00:00]} 66. Qg5+ {[%emt 0:00:37]} Kh2 {[%emt 0:00:00]} 67. h5 {[%emt 0:00:08]} Kh3 {[%emt 0:00:00]} 68. h6 {[%emt 0:00:35]} Qf7 {[%emt 0:00:00]} 69. Qe3+ {[%emt 0:00:47]} Kg4 {[%emt 0:00:00]} 70. Qe4+ {[%emt 0:00:19]} Kg5 {[%emt 0:00:00]} 71. h7 {[%emt 0:00:04]} Qf6+ {[%emt 0:00:34]} 72. Kd5 {[%emt 0:00:24]} Qd8+ {[%emt 0:00:35]} 73. Ke6 {[%emt 0:01:10]} Qe8+ {[%emt 0:00:13]} 74. Kd5 {[%emt 0:00:04]} Qd8+ {[%emt 0:00:10]} 75. Ke6 {[%emt 0:00:25]} Qe8+ {[%emt 0:00:04]} 76. Kd5 {[%emt 0:00:03]} 1/2-1/2

[Event "XII Cracow ICC-A 2024"]
[Site "Krakow"]
[Date "2024.06.27"]
[Round "7.3"]
[White "Drozdowski, Kacper"]
[Black "Moussard, Jules"]
[Result "1-0"]
[ECO "B49"]
[WhiteElo "2448"]
[BlackElo "2610"]
[Annotator "TA"]
[PlyCount "93"]
[EventDate "2024.06.20"]
[EventType "swiss"]
[EventCountry "POL"]
[SourceTitle "playchess.com"]
[Source "ChessBase"]
[SourceQuality "1"]
[TimeControl "40/5400+30:1800+30"]

{[%evp 16,93,41,29,31,11,39,43,35,50,49,34,30,33,34,38,41,37,36,37,34,0,0,-18,-18,-12,35,29,22,30,54,50,69,72,99,104,102,116,129,98,115,80,106,43,162,171,165,145,270,207,284,276,294,226,221,216,507,508,755,747,1591,892,818,793,802,763,760,940,1925,1898,2415,2162,29973,29973,29979,29980,29982,29983,29986,29987]} 1. e4 {[%emt 0:00:03]} c5 {[%emt 0:00:31]} 2. Nf3 {[%emt 0:00:07]} e6 {[%emt 0:00:05]} 3. d4 {[%emt 0:00:14]} cxd4 {[%emt 0:00:07]} 4. Nxd4 {[%emt 0:00:05]} Nc6 {[%emt 0:00:12]} 5. Nc3 {[%emt 0:00:17]} Qc7 {[%emt 0:00:09]} 6. Be3 {[%emt 0:00:38]} a6 {[%emt 0:00:10]} 7. Be2 {[%emt 0:00:38]} b5 {[%emt 0:00:48]} 8. Nxc6 {[%emt 0:00:37]} Qxc6 {[%emt 0:00:16]} 9. a3 {[%emt 0:02:05]} Bb7 {[%emt 0:00:18]} 10. Qd4 {[%emt 0:05:45]} Qd6 {[%emt 0:24:40]} 11. f4 {[%emt 0:07:29]} Qxd4 {[%emt 0:02:32] White is slightly better.} 12. Bxd4 {[%emt 0:00:03]} Rc8 {[%emt 0:06:32]} 13. Bf3 {[%emt 0:05:51]} f6 {[%emt 0:04:13]} 14. O-O-O {[%emt 0:02:35]} Bc5 {[%emt 0:02:25]} 15. Bxc5 {[%emt 0:09:49]} Rxc5 {[%emt 0:00:15]} 16. Rd6 {[%emt 0:00:08]} Ne7 {[%emt 0:05:19]} 17. Rhd1 {[%emt 0:09:19]} Rc7 {[%emt 0:00:22]} 18. e5 {[%emt 0:06:38]} Nc8 {[%emt 0:20:28] [#] White must now prevent ...Bxf3.} 19. R6d4 {[%emt 0:05:49] And now Bxb7 would win.} Bxf3 {[%emt 0:05:37]} 20. gxf3 {[%emt 0:00:03]} f5 {[%emt 0:08:47]} (20... Rf8 $11 {deserves consideration.}) 21. a4 $14 {[%emt 0:02:50]} Rb7 {[%emt 0:00:29]} 22. Na2 {[%emt 0:09:39]} bxa4 {[%emt 0:13:12]} 23. Rxa4 {[%emt 0:00:27]} Ra7 {[%emt 0:00:40]} 24. Ra5 {[%emt 0:06:23]} Ke7 {[%emt 0:03:38]} 25. Nb4 {[%emt 0:01:12]} Nb6 {[%emt 0:00:04]} 26. b3 {[%emt 0:00:42] Inhibits Nc4.} (26. Rxa6 Rxa6 27. Nxa6 Ra8 $17) (26. Nxa6 Rha8 27. b3 Nc8 $19 (27... Rxa6 $2 28. Rxa6 Rxa6 29. Rd6 $19)) 26... Rb8 {[%emt 0:01:08][%cal Ob6c4]} 27. c3 {[%emt 0:06:20]} ({Inferior is} 27. Nxa6 Rba8 28. b4 (28. Rg1 $2 g6 $19) 28... Rxa6 $19) 27... Na8 {[%emt 0:00:23]} 28. Kb2 {[%emt 0:09:30][%cal Od1g1] White is much more active. The black rooks are passive.} ({Much worse is} 28. Rxa6 $6 Rxa6 29. Nxa6 Rxb3 $11) 28... Nc7 {[%emt 0:00:21]} 29. Rda1 {[%emt 0:01:46]} (29. Nd3 $16) 29... Rxb4 {[%emt 0:00:48]} 30. cxb4 {[%emt 0:00:06][%cal Ob4b5][%mdl 4096] [#] Endgame. b5! would now be deadly. KRR-KRN} Rb7 {[%emt 0:00:03]} 31. Rc5 {[%emt 0:02:39][%cal Oc5c7]} Kd8 {[%emt 0:00:42]} (31... Nd5 $16) 32. Rc4 {[%emt 0:00:59]} Ke7 {[%emt 0:00:31]} 33. h4 {[%emt 0:00:28]} g6 {[%emt 0:00:35]} 34. Rac1 {[%emt 0:00:49]} Nd5 {[%emt 0:00:10]} 35. Ka3 {[%emt 0:00:21]} Rb6 $2 {[%emt 0:00:58]} (35... Rb8 36. Rc8 Rxc8 37. Rxc8 h6) 36. Rc8 $18 {[%emt 0:00:44]} Nxb4 {[%emt 0:00:29]} 37. Rh8 {[%emt 0:00:27]} Nc6 {[%emt 0:00:21]} 38. Rxh7+ {[%emt 0:01:10]} Kd8 {[%emt 0:00:13]} 39. Rh8+ {[%emt 0:01:10]} Kc7 {[%emt 0:00:56]} 40. Rg8 {[%emt 0:00:12]} a5 {[%emt 0:00:30]} 41. Rxg6 {[%emt 0:30:14]} Rb8 {[%emt 0:30:01]} 42. h5 {[%emt 0:00:56][%cal Bh4h5,Bh5h6,Bh6h7][%mdl 32]} Rh8 {[%emt 0:00:00]} 43. h6 {[%emt 0:00:00]} Kd8 {[%emt 0:00:00]} 44. Rh1 {[%emt 0:00:00] White mates.} Ne7 {[%emt 0:00:00]} 45. Rg7 {[%emt 0:00:00]} Ke8 {[%emt 0:00:00]} 46. h7 {[%emt 0:00:00]} Kf8 {[%emt 0:00:00]} 47. Rhg1 {[%emt 0:00:00] Weighted Error Value: White=0.14 (very precise) /Black=0.51.  Mistake:       	White=1     	Black=4      Inaccurate:     	White=2     	Black=5      OK:         	White=11    	Black=11     Best:        	White=1     	---} 1-0

[Event "XII Cracow ICC-A 2024"]
[Site "Krakow"]
[Date "2024.06.27"]
[Round "7.4"]
[White "Mirzoev, Azer"]
[Black "Kosakowski, Jakub"]
[Result "0-1"]
[ECO "D02"]
[WhiteElo "2448"]
[BlackElo "2480"]
[Annotator "TA"]
[PlyCount "108"]
[EventDate "2024.06.20"]
[EventType "swiss"]
[EventCountry "POL"]
[SourceTitle "playchess.com"]
[Source "ChessBase"]
[SourceQuality "1"]
[TimeControl "40/5400+30:1800+30"]

{[%evp 25,108,0,0,0,0,0,0,0,0,-3,0,0,-7,-10,0,0,-6,-2,-6,-49,-61,-48,-49,-45,-43,-114,-74,-100,-72,-123,-124,-135,-149,-133,-107,-115,-92,-117,-112,-112,-89,-89,-26,-19,-18,-17,-28,-20,0,-20,-18,-74,-68,-83,-88,-120,-149,-138,-125,-247,-247,-231,-251,-441,-445,-405,-232,-451,-439,-434,-452,-490,-445,-650,-573,-569,-535,-556,-533,-607,-588,-1212,-1133,-954,-947]} 1. d4 {[%emt 0:00:50]} d5 {[%emt 0:00:18]} 2. Nf3 {[%emt 0:00:11]} e6 {[%emt 0:00:30]} 3. g3 {[%emt 0:00:34]} b6 {[%emt 0:00:20]} 4. Bg2 {[%emt 0:00:23]} Bb7 {[%emt 0:00:10]} 5. O-O {[%emt 0:00:12]} Nd7 {[%emt 0:00:40]} 6. c4 {[%emt 0:00:35] D02: 1 d4 d5 2 Nf3 sidelines, including 2...Nf6 3 g3 and 2...Nf6 3 Bf4.} dxc4 {[%emt 0:01:43]} 7. Qa4 {[%emt 0:00:10]} a6 {[%emt 0:05:44]} 8. Qxc4 {[%emt 0:00:11]} Ngf6 {[%emt 0:00:47]} 9. Rd1 {[%emt 0:06:47]} h6 $146 {[%emt 0:04:06]} ({Predecessor:} 9... b5 10. Qd3 c5 11. dxc5 Bxc5 12. Be3 Qb6 13. Bd4 O-O 14. Nc3 e5 15. Bxc5 Nxc5 {0-1 Kourkoulos Arditis,S (2538)-Mastrovasilis,A (2531) GRE-ch 70th Lamia 2021 (4)}) 10. Nc3 {[%emt 0:11:58]} b5 {[%emt 0:02:36]} 11. Qd3 {[%emt 0:03:38]} c5 {[%emt 0:07:12]} 12. dxc5 {[%emt 0:01:14]} Bxc5 {[%emt 0:03:45]} 13. Be3 {[%emt 0:12:36]} Qb6 {[%emt 0:04:33]} 14. Bxc5 {[%emt 0:01:01]} Nxc5 {[%emt 0:00:11]} 15. Qd4 {[%emt 0:09:04]} O-O {[%emt 0:18:30]} (15... b4 $5 16. Nb1 $8 Rc8 $11) 16. b4 {[%emt 0:13:47]} Ncd7 {[%emt 0:00:22]} 17. Qxb6 {[%emt 0:06:24]} Nxb6 {[%emt 0:00:07]} 18. Ne5 {[%emt 0:00:34]} Bxg2 {[%emt 0:01:31]} 19. Kxg2 {[%emt 0:00:11]} Rfc8 {[%emt 0:04:55]} 20. Rac1 {[%emt 0:02:11]} Nc4 {[%emt 0:08:34]} 21. Nd3 {[%emt 0:00:28]} Na3 {[%emt 0:00:29]} 22. e3 {[%emt 0:05:42]} Rc4 {[%emt 0:01:32]} 23. Ne2 {[%emt 0:02:20]} Nd5 {[%emt 0:04:02]} 24. Nef4 {[%emt 0:06:30]} Nc3 {[%emt 0:01:45]} (24... Nxb4 $2 25. Rxc4 Nxd3 26. Rd4 Nxf4+ 27. gxf4 $18 (27. exf4 a5 $18)) 25. Re1 {[%emt 0:00:12]} ({White should try} 25. Nb2 $15 Nxd1 26. Nxc4 Nxc4 (26... bxc4 27. Rxd1 Rb8 28. Rd6 $15) 27. Rxd1) 25... Rac8 {[%emt 0:12:53]} 26. Ne5 {[%emt 0:03:42]} R4c7 {[%emt 0:00:06]} 27. Nfd3 {[%emt 0:03:25]} (27. h4 $142) 27... f6 $17 {[%emt 0:02:18]} 28. Nf3 {[%emt 0:00:22]} e5 $1 {[%emt 0:01:58]} (28... Nxa2 $6 29. Rxc7 Rxc7 30. Ra1 $11) 29. e4 {[%emt 0:00:56]} Rc6 {[%emt 0:02:59]} (29... Nxa2 30. Rxc7 Rxc7 31. Ra1 $17) 30. h4 {[%emt 0:01:27]} Rc4 {[%emt 0:05:50]} 31. Nd2 {[%emt 0:03:20]} Rd4 $1 {[%emt 0:00:30]} 32. Re3 {[%emt 0:01:00]} Nc4 $1 {[%emt 0:03:08]} 33. Nxc4 {[%emt 0:00:17]} Rdxc4 {[%emt 0:00:11]} ({Much weaker is} 33... Rcxc4 34. Nxe5 Nxa2 35. Ra1 $15) (33... Nxa2 $17 34. Rc2 bxc4 (34... Rcxc4 $2 35. Rxa2 Rc3 36. Rd2 $18)) 34. Nb2 $1 $11 {[%emt 0:01:44]} R4c7 {[%emt 0:00:29]} 35. Ra1 $1 {[%emt 0:00:37]} Rd8 {[%emt 0:01:16]} 36. Rc1 {[%emt 0:02:53]} Rdc8 {[%emt 0:00:24]} (36... Nd5 $5 37. Rxc7 Nxe3+ 38. Kf3 (38. fxe3 $2 {is the wrong capture.} Rd2+ 39. Kf3 Rxb2 $19) 38... Rd2 39. Kxe3 Rxb2 $17) 37. Ra1 $1 {[%emt 0:00:16]} h5 {[%emt 0:00:23]} 38. a4 {[%emt 0:00:22] [#]} (38. Kf1 $11) 38... Rd8 $1 $17 {[%emt 0:00:19]} 39. axb5 {[%emt 0:00:19]} axb5 {[%emt 0:00:04]} 40. Ra3 {[%emt 0:00:33] [#]} Rd2 $1 {[%emt 0:01:06]} 41. Rb3 {[%emt 0:07:33]} Kh7 {[%emt 0:05:25]} 42. Nd3 {[%emt 0:19:09]} (42. Rexc3 $17 Rxc3 43. Rxc3 Rxb2 44. Rc5 Rxb4 45. f4) 42... Nd1 $19 {[%emt 0:02:04]} 43. Rf3 {[%emt 0:00:06]} Rc4 {[%emt 0:01:31]} 44. Nc5 $2 {[%emt 0:00:53]} (44. Kf1 {is a better defense.}) 44... Rcc2 $19 {[%emt 0:00:35]} 45. Nd3 {[%emt 0:01:34]} Re2 {[%emt 0:00:36]} (45... f5 $142 46. Rxf5 Ne3+ 47. Kh3 Nxf5 48. exf5 e4) 46. Rb1 $2 {[%emt 0:02:34]} (46. Kf1) 46... Ne3+ $19 {[%emt 0:01:04]} 47. Kg1 {[%emt 0:00:21]} Ng4 {[%emt 0:00:07]} 48. Kg2 {[%emt 0:01:43]} Rxe4 {[%emt 0:00:29]} 49. Re1 {[%emt 0:00:30]} (49. Rb2 $142 Rxb2 50. Nxb2) 49... Rxe1 {[%emt 0:01:32]} 50. Nxe1 {[%emt 0:00:04]} Re2 {[%emt 0:00:19]} 51. Kf1 {[%emt 0:00:19]} Rb2 {[%emt 0:00:07]} 52. Kg2 {[%emt 0:00:22]} e4 {[%emt 0:00:19]} 53. Rf4 {[%emt 0:00:15]} e3 {[%emt 0:00:07]} 54. Nd3 {[%emt 0:01:47]} Rd2 {[%emt 0:00:07]} 0-1

[Event "XII Cracow ICC-A 2024"]
[Site "Krakow"]
[Date "2024.06.27"]
[Round "7.5"]
[White "Brzezina, Piotr"]
[Black "Fier, Alexandr"]
[Result "1/2-1/2"]
[ECO "B30"]
[WhiteElo "2298"]
[BlackElo "2602"]
[Annotator "TA"]
[PlyCount "105"]
[EventDate "2024.06.20"]
[EventType "swiss"]
[EventCountry "POL"]
[SourceTitle "playchess.com"]
[Source "ChessBase"]
[SourceQuality "1"]
[TimeControl "40/5400+30:1800+30"]

{[%evp 9,105,0,11,19,17,17,20,14,19,20,18,0,10,0,8,8,9,-5,25,9,7,0,13,26,18,9,23,12,25,16,25,0,0,0,0,0,0,-99,-92,-134,-15,-14,-12,-12,-14,-14,-10,-1,0,-65,-64,-69,-66,-65,-74,-137,-131,-116,-143,-123,-119,-125,-28,-37,-24,-32,-23,-28,-29,-27,-32,-20,0,0,0,0,0,0,0,0,0,0,0,0,0,0,0,0,0,0,0,0,0,0,0,0,0,0]} 1. e4 {[%emt 0:01:33]} c5 {[%emt 0:00:04]} 2. Nf3 {[%emt 0:00:12]} Nc6 {[%emt 0:00:04]} 3. Bb5 {[%emt 0:00:21]} Nf6 {[%emt 0:00:14]} 4. Nc3 {[%emt 0:01:17]} Nd4 {[%emt 0:00:06]} 5. Bd3 {[%emt 0:06:37]} Nxf3+ {[%emt 0:04:41]} 6. Qxf3 {[%emt 0:00:06] B30: Sicilian: 2...Nc6 3 Bb5, lines without ...g6.} d6 {[%emt 0:00:04]} 7. O-O $146 {[%emt 0:05:24]} ({Predecessor:} 7. h3 g6 8. b3 Bg7 9. Bb2 O-O 10. O-O-O e6 11. g4 d5 12. exd5 Nxd5 13. Nxd5 Bxb2+ 14. Kxb2 exd5 {0-1 Wegerle,J (2418)-Draeger,T (2210) GER-ch internet U25 final blitz 2007 (4)}) 7... g6 {[%emt 0:00:04]} 8. Bc4 {[%emt 0:07:51]} Bg7 {[%emt 0:00:26]} 9. d3 {[%emt 0:00:12]} O-O {[%emt 0:00:06]} 10. a4 {[%emt 0:15:55]} Nd7 {[%emt 0:00:45][%cal Bf6d7,Bd7e5,Be5c6,Bc6d4][%mdl 32]} 11. Qg3 {[%emt 0:02:09]} Ne5 {[%emt 0:00:04]} 12. Ba2 {[%emt 0:00:31]} Nc6 {[%emt 0:00:05]} 13. f4 {[%emt 0:02:00]} Nd4 {[%emt 0:00:04] Prevents f5} 14. Qf2 {[%emt 0:00:15]} e6 {[%emt 0:00:14]} 15. Nd1 {[%emt 0:07:28][%cal Bc3d1,Bd1e3,Be3c4][%mdl 32]} Kh8 {[%emt 0:02:25]} 16. c3 {[%emt 0:00:58]} Nc6 {[%emt 0:00:04]} 17. Ne3 {[%emt 0:04:17]} f5 {[%emt 0:00:05]} 18. Bd2 {[%emt 0:05:28]} Bd7 {[%emt 0:00:25]} 19. Nc4 {[%emt 0:04:37]} Qe7 {[%emt 0:01:35]} 20. Rae1 {[%emt 0:01:50]} fxe4 {[%emt 0:02:25]} 21. dxe4 {[%emt 0:00:12]} e5 {[%emt 0:00:03]} 22. Qe2 {[%emt 0:03:47]} Be6 {[%emt 0:03:04]} 23. Bb1 {[%emt 0:01:08]} (23. Bb3 $11 {keeps the balance.}) 23... Bh6 $17 {[%emt 0:05:40]} 24. g3 {[%emt 0:03:58]} Rae8 {[%emt 0:00:06]} (24... exf4 $17 {[%cal Of4f3] aiming for ...f3!} 25. gxf4 Bxc4 26. Qxc4 Bxf4 (26... Qh4 27. e5 $17) 27. Rxf4 (27. Bxf4 Rxf4 28. Rxf4 Qg5+ 29. Kh1 Qxf4 $11) 27... Qg5+ 28. Kh1 Rxf4 29. Bxf4 Qxf4) 25. Bd3 $1 $11 {[%emt 0:05:05]} exf4 {[%emt 0:07:07]} 26. Bxf4 {[%emt 0:02:11]} Bxf4 {[%emt 0:00:44]} 27. Rxf4 {[%emt 0:01:40]} Rxf4 {[%emt 0:02:40]} 28. gxf4 {[%emt 0:00:03]} g5 {[%emt 0:00:07]} 29. fxg5 {[%emt 0:08:45]} (29. f5 $11 Bf7 30. Qe3) 29... Qxg5+ $15 {[%emt 0:01:17]} 30. Qg2 {[%emt 0:04:03]} Qh6 {[%emt 0:05:28]} 31. Kh1 $1 {[%emt 0:00:32]} (31. Nxd6 $2 Rg8 $19) 31... Rg8 {[%emt 0:00:03]} 32. Qf2 {[%emt 0:01:54] [#]} (32. Qf3 $142) 32... d5 $1 $17 {[%emt 0:00:02]} (32... Rf8 33. Qe3 Qh5 (33... Qxe3 34. Rxe3 d5 35. exd5 $11) 34. Rg1 $11) 33. Nd6 {[%emt 0:02:28]} Ne5 {[%emt 0:00:27]} 34. Be2 {[%emt 0:00:07]} Bh3 {[%emt 0:20:19] Hoping for ...Bg2+.} 35. Nf5 {[%emt 0:00:08] [#]} Qf6 {[%emt 0:00:02]} (35... Qg5 $1 $17 36. Ng3 h5 (36... dxe4 37. Qxc5 Nd3 38. Qd4+ Qg7 39. Qxg7+ Kxg7 40. Bxd3 $11)) 36. Rg1 $1 $11 {[%emt 0:00:33] Wards off Bg2+} Rxg1+ {[%emt 0:05:46]} (36... dxe4 $2 {loses.} 37. Rxg8+ Kxg8 38. Qg3+ $18) 37. Kxg1 {[%emt 0:00:08]} Bxf5 {[%emt 0:00:02]} 38. exf5 $15 {[%emt 0:00:13][%mdl 4096] Endgame. KQB-KQN} Qg5+ {[%emt 0:00:04]} 39. Kf1 {[%emt 0:01:25]} b6 {[%emt 0:00:50]} 40. h4 {[%emt 0:02:04]} Qf6 {[%emt 0:02:10]} 41. Qf4 {[%emt 0:08:00]} Kg7 {[%emt 0:00:05]} 42. Bf3 {[%emt 0:03:29]} Nxf3 {[%emt 0:04:05]} 43. Qxf3 {[%emt 0:00:07]} Qxh4 {[%emt 0:00:02]} 44. Qxd5 $11 {[%emt 0:00:14] KQ-KQ} Qf4+ {[%emt 0:00:02]} 45. Kg2 {[%emt 0:07:25]} Kf6 {[%emt 0:00:49]} 46. Qe6+ {[%emt 0:00:07]} Kg5 {[%emt 0:00:13] White must now prevent ...Qg4+.} 47. Qe7+ {[%emt 0:00:05]} Kxf5 {[%emt 0:00:41]} 48. Qxh7+ {[%emt 0:00:08]} Ke5 {[%emt 0:00:04] Strongly threatening ...Qe4+.} 49. Qxa7 {[%emt 0:02:37]} Qd2+ {[%emt 0:00:04]} 50. Kf3 {[%emt 0:00:06] Qe7+ is the strong threat.} Qd3+ {[%emt 0:00:03]} 51. Kf2 {[%emt 0:00:12]} Qd2+ {[%emt 0:00:01]} 52. Kf3 {[%emt 0:00:06] Threatens to win with Qe7+.} Qd3+ {[%emt 0:00:03]} 53. Kf2 {[%emt 0:00:06]} 1/2-1/2